[Event "ChessKid Cup Div-III 2023"]
[Site "Online"]
[Date "2023.05.22"]
[Round "51.2"]
[White "Donchenko, Alexander"]
[Black "Iturrizaga Bonelli, Eduardo"]
[Result "1-0"]
[ECO "A49"]
[WhiteElo "2669"]
[BlackElo "2637"]
[Annotator "TA"]
[PlyCount "58"]
[EventDate "2023.05.21"]
[EventType "k.o."]
[EventCountry "NET"]
[SourceTitle "playchess.com"]
[Source "ChessBase"]
[SourceQuality "1"]
[TimeControl "900+3"]

{[%evp 11,57,19,19,0,10,-21,16,23,36,18,19,27,28,16,33,25,27,18,57,46,41,34,59,25,23,18,79,48,56,63,54,67,90,118,83,107,110,22,33,32,634,616,729,725,739,729,29993,29994]} 1. d4 {[%emt 0:00:08]} Nf6 {[%emt 0:00:05]} 2. Nf3 {[%emt 0:00:04]} c5 {[%emt 0:00:16]} 3. c3 {[%emt 0:00:12]} Qb6 {[%emt 0:00:19]} 4. g3 {[%emt 0:00:21]} g6 {[%emt 0:00:24]} 5. Bg2 {[%emt 0:00:03]} Bg7 {[%emt 0:00:02]} 6. O-O {[%emt 0:00:03]} O-O {[%emt 0:00:00]} 7. Qb3 {[%emt 0:00:27] A49: 1 d4 Nf6 2 Nf3 g6 3 g3: Anti-King's Indian systems.} d6 {[%emt 0:00:09]} 8. Nbd2 {[%emt 0:00:25][%cal Bb1d2,Bd2e4,Be4c3,Bc3d5][%mdl 32]} Be6 {[%emt 0:00:04] [#]} 9. dxc5 $146 {[%emt 0:00:29] The position is equal.} ({Predecessor:} 9. Qxb6 axb6 10. a3 {½-½ Ljubisavljevic,Z (2240)-Stoppa,O (2279) Imperia op 54th 2012 (8)}) 9... Qa6 {[%emt 0:02:08]} 10. c4 {[%emt 0:00:28]} dxc5 {[%emt 0:00:34]} 11. Ng5 {[%emt 0:00:12]} Bc8 {[%emt 0:00:17]} 12. Nde4 {[%emt 0:00:06]} Nfd7 {[%emt 0:00:51]} 13. Be3 $36 {[%emt 0:00:28][%mdl 2048] White fights for an advantage.} h6 {[%emt 0:00:02]} 14. Nf3 {[%emt 0:00:13]} ({Not} 14. Nxc5 Nxc5 15. Bxc5 hxg5 $17) 14... b6 {[%emt 0:00:08]} 15. Nc3 {[%emt 0:00:43] And now Nd2 would win.} Nc6 {[%emt 0:00:55]} 16. Rad1 {[%emt 0:01:10]} (16. Nb5 $5 {[%cal Rb5c7]}) 16... Na5 {[%emt 0:00:45]} 17. Qb5 {[%emt 0:00:06]} Qxb5 {[%emt 0:00:15]} 18. cxb5 {[%emt 0:00:00] aiming for Nd5.} Nc4 {[%emt 0:00:26]} (18... Nf6 $11) 19. Bc1 {[%emt 0:00:20] [#] Strongly threatening Nd5.} (19. Nd5 $5 Kh7 20. Nxe7 $16) 19... Rb8 {[%emt 0:00:28]} 20. Nd5 {[%emt 0:00:18]} Re8 {[%emt 0:00:01]} 21. b3 {[%emt 0:01:07]} Nd6 {[%emt 0:02:25] [#]} 22. Nxe7+ $1 {[%emt 0:00:30][%mdl 64] Discovered Attack, Remove Defender} Rxe7 {[%emt 0:00:00]} 23. Rxd6 {[%emt 0:00:01] Hoping for Bf4.} Rxe2 {[%emt 0:00:20]} 24. Rfd1 {[%emt 0:00:59]} (24. Be3 $16) 24... Nf8 $1 $11 {[%emt 0:00:18]} 25. Rd8 {[%emt 0:00:22] Bf4 would be deadly.} Bf6 $2 {[%emt 0:00:03][%mdl 8192] Black cannot hold the game after this.} (25... g5 $14) 26. Bxh6 $18 {[%emt 0:00:47]} Bxd8 {[%emt 0:00:02]} 27. Rxd8 {[%emt 0:00:02]} Rxa2 {[%emt 0:00:00]} 28. h4 {[%emt 0:00:28] White threatens Ng5 and mate.} (28. Bxf8 {leads to mate.} Ra1+) 28... Ra8 {[%emt 0:00:24]} 29. Rxf8+ {[%emt 0:00:16]} Kh7 {[%emt 0:00:01] Weighted Error Value: White=0.14 (very precise) /Black=0.66} 1-0

[Event "ChessKid Cup Div-III 2023"]
[Site "Online"]
[Date "2023.05.22"]
[Round "51.2"]
[White "Santos Ruiz, Miguel"]
[Black "Tang, Andrew"]
[Result "1/2-1/2"]
[ECO "C55"]
[WhiteElo "2590"]
[BlackElo "2523"]
[Annotator "TA"]
[PlyCount "131"]
[EventDate "2023.05.21"]
[EventType "k.o."]
[EventCountry "NET"]
[SourceTitle "playchess.com"]
[Source "ChessBase"]
[SourceQuality "1"]
[TimeControl "900+3"]

{[%evp 9,131,24,31,33,37,22,37,27,35,23,27,41,30,28,51,19,39,21,54,54,51,36,47,22,47,58,79,77,66,78,122,126,165,131,156,157,143,121,149,132,163,86,94,92,131,103,120,59,110,98,135,94,112,113,148,155,213,233,244,267,257,258,264,139,143,122,133,35,30,0,29,0,19,15,57,10,51,12,69,0,274,110,136,137,145,137,139,27,27,27,29,30,528,528,252,252,448,447,312,181,181,181,568,73,73,73,181,73,181,73,243,73,29968,29969,29969,29970,29967,29966,6079,73,73,8,8,-8]} 1. e4 {[%emt 0:00:04]} e5 {[%emt 0:00:04]} 2. Nf3 {[%emt 0:00:01]} Nc6 {[%emt 0:00:01]} 3. Bc4 {[%emt 0:00:01]} Nf6 {[%emt 0:00:02]} 4. d3 {[%emt 0:00:01]} h6 {[%emt 0:00:01]} 5. c3 {[%emt 0:00:02]} d6 {[%emt 0:00:00]} 6. a4 {[%emt 0:00:01][%cal Ba2a4,Ba4a5,Ba5a6][%mdl 32] C55: Two Knights: 4 d3, 4 d4 exd4 5 e5 and Max Lange Attack.} g5 {[%emt 0:00:19]} 7. Qb3 {[%emt 0:00:02]} (7. a5 Bg7 8. a6 b6 9. O-O O-O 10. Re1 Rb8 11. Bb5 Ne7 12. d4 c6 13. Bf1 Ng6 14. h3 Qe7 15. g3 Be6 {0-1 Santos Ruiz,M (2590)-Tang,A (2523) Titled Tuesday intern op 09th May Late blitz 2023 (7)}) 7... Qe7 {[%emt 0:00:05]} 8. a5 {[%emt 0:00:00] White is slightly better.} Bg7 {[%emt 0:00:12]} 9. Nbd2 {[%emt 0:00:05][%cal Bb1d2,Bd2f1,Bf1e3][%mdl 32] [#]} O-O $146 {[%emt 0:00:06]} ({Predecessor:} 9... Nd8 10. Nf1 c6 11. Ne3 Ng4 12. Nf1 f5 13. h4 f4 14. Qd1 Be6 15. hxg5 hxg5 16. Rxh8+ Bxh8 17. Bxe6 Nxe6 {1-0 Tari,A (2654)-Wang,H (2744) Norway Chess 10th 2022 (5)}) 10. Nf1 {[%emt 0:00:02]} Bd7 {[%emt 0:01:39][%cal Ob7b5]} 11. Qc2 {[%emt 0:01:08]} (11. Qxb7 $2 Rfb8 12. Qa6 (12. Qxc7 $2 Ne8 $19) 12... Nd8 $19) 11... Be6 {[%emt 0:02:45]} 12. Ne3 {[%emt 0:00:28]} Qd7 {[%emt 0:01:09]} 13. a6 {[%emt 0:00:15]} Bxc4 {[%emt 0:00:45]} 14. dxc4 {[%emt 0:00:10]} b6 {[%emt 0:00:15]} 15. O-O {[%emt 0:00:25]} Ne7 {[%emt 0:00:02]} 16. Rd1 {[%emt 0:00:08]} Qc6 {[%emt 0:00:02]} 17. Nd2 {[%emt 0:00:01]} Rae8 {[%emt 0:00:05]} 18. f3 {[%emt 0:00:18]} Qd7 {[%emt 0:00:35]} 19. Ndf1 {[%emt 0:00:04]} Qc8 {[%emt 0:00:05]} 20. Ng3 {[%emt 0:00:07]} Nd7 {[%emt 0:00:37]} 21. b4 {[%emt 0:00:17]} Nb8 {[%emt 0:00:13]} 22. Qa4 {[%emt 0:00:18]} Kh7 {[%emt 0:00:31]} 23. Nef5 {[%emt 0:00:07]} Ng6 {[%emt 0:00:07]} 24. Nh5 {[%emt 0:00:42]} Bh8 {[%emt 0:00:02] [#]} 25. c5 {[%emt 0:00:02]} dxc5 $16 {[%emt 0:00:22]} 26. bxc5 {[%emt 0:00:01]} Re6 {[%emt 0:00:15]} 27. Be3 {[%emt 0:00:34] White is much more active.} Nf4 {[%emt 0:00:54]} 28. Nxf4 {[%emt 0:00:03]} (28. Nhg3 $16) 28... gxf4 {[%emt 0:00:04]} ({Better is} 28... exf4 $14 29. Bd4 Be5) 29. Bf2 {[%emt 0:00:02]} Bf6 {[%emt 0:00:02]} 30. Qc4 {[%emt 0:00:31]} Rg8 {[%emt 0:00:22]} 31. g4 {[%emt 0:00:04]} fxg3 {[%emt 0:00:18]} 32. hxg3 {[%emt 0:00:02]} Nc6 {[%emt 0:00:02]} (32... Be7 $16 33. Kg2 Bg5) 33. Kg2 $18 {[%emt 0:00:21]} Ne7 {[%emt 0:00:04]} 34. cxb6 {[%emt 0:00:16]} cxb6 {[%emt 0:00:09]} 35. Qxc8 {[%emt 0:00:03]} Rxc8 {[%emt 0:00:00]} 36. Rd7 {[%emt 0:00:09]} (36. Nd6 $1 $18 {[%cal Rd6c8]}) 36... Nxf5 $16 {[%emt 0:00:01]} 37. exf5 {[%emt 0:00:50]} Re7 {[%emt 0:00:02]} 38. Rd6 {[%emt 0:00:57]} (38. Rb7 $1 $16) 38... Bg5 $1 $14 {[%emt 0:00:13]} 39. c4 {[%emt 0:00:36]} Rec7 {[%emt 0:00:02]} (39... Kg7 $5 {[%cal Re7c7]}) 40. Ra4 {[%emt 0:00:19]} (40. Re1 $5 {[%cal Re1e5]}) 40... Be7 {[%emt 0:00:05]} 41. Rd5 {[%emt 0:00:06]} f6 {[%emt 0:00:02]} (41... Rxc4 $2 42. Rxc4 Rxc4 43. Rd7 $18 (43. Rxe5 Rc7 $14)) 42. Ra1 {[%emt 0:00:42]} (42. g4 $14 {should be considered.}) 42... Kg8 {[%emt 0:00:11]} (42... Rxc4 43. Bxb6 axb6 44. a7 Rc2+ 45. Kh3 $18) 43. Be3 {[%emt 0:00:43]} (43. g4 $5 {[%cal Rf2e3]}) 43... Bf8 {[%emt 0:00:08]} ({Weaker is} 43... Rxc4 44. Rd7 Rc2+ 45. Kh3 $16) (43... Kf7 $1 $11) 44. g4 {[%emt 0:00:36]} (44. Rad1 $14) 44... Rh7 $2 {[%emt 0:02:11][%mdl 8192]} (44... Rxc4 $11 45. Rad1 Rc3) 45. Rc1 {[%emt 0:00:23]} (45. Rad1 $1 $18) 45... h5 {[%emt 0:00:06]} 46. gxh5 {[%emt 0:00:23]} Rxh5 {[%emt 0:00:07]} 47. Rd7 {[%emt 0:00:02]} Rh7 {[%emt 0:00:01]} 48. Rxh7 {[%emt 0:00:02]} ({Only move:} 48. Rcd1 $1 $16 {Hoping for Rxh7.} Rc7 49. Rxc7 Rxc7 50. Rd8) 48... Kxh7 $16 {[%emt 0:00:00][%mdl 4096] Endgame KRB-KRB} 49. Rd1 {[%emt 0:00:02] Strongly threatening Rd7+.} Rc7 {[%emt 0:00:04] Inhibits Rd7+.} 50. Rd8 {[%emt 0:00:01]} Be7 {[%emt 0:01:53][%mdl 8192]} (50... Bh6 $11 {and Black stays safe.} 51. Bf2 Bg5) 51. Rb8 $1 $18 {[%emt 0:00:03]} Kg7 {[%emt 0:00:08]} 52. Rb7 {[%emt 0:01:15]} Rxb7 {[%emt 0:00:06]} (52... Bd6 {might work better.} 53. c5 Rxb7 54. axb7 bxc5 55. Bxc5 Bb8) 53. axb7 {[%emt 0:00:01] KB-KB} Bd6 {[%emt 0:00:01]} 54. Kf2 {[%emt 0:00:18]} (54. Bc1 $142) 54... Kf7 {[%emt 0:00:03]} 55. Ke2 {[%emt 0:00:01]} Bb8 $2 {[%emt 0:00:05]} (55... Ke8 {is tougher.}) 56. c5 $2 {[%emt 0:00:22]} (56. Kd3 $18) 56... bxc5 $16 {[%emt 0:00:04]} 57. Bxc5 {[%emt 0:00:00] And now Bb4 would win.} Ke8 {[%emt 0:00:01]} (57... a5 $16) 58. Kd3 {[%emt 0:00:02]} (58. Bb4 $1 $18) 58... Kd7 {[%emt 0:00:00]} (58... a5 $16) 59. Kc4 {[%emt 0:00:02]} (59. Bb4 $1 $18) 59... a6 $2 {[%emt 0:00:02] [#]} (59... a5 $16) 60. Bf8 $2 {[%emt 0:00:09]} (60. Bb4 $1 $18 {and the rest is easy. Intending Kd5 and mate.} Kc6 61. Be7 Kxb7 62. Kd5 (62. Bxf6 Kc6 $11)) 60... Bc7 $2 {[%emt 0:00:05][%mdl 8192]} (60... a5 $16) 61. Kc5 {[%emt 0:00:13]} a5 {[%emt 0:00:01]} 62. Kb5 {[%emt 0:00:02]} a4 {[%emt 0:00:02]} 63. Kxa4 {[%emt 0:00:01]} Kc6 {[%emt 0:00:01] [#]} 64. Be7 $2 {[%emt 0:00:02]} (64. Kb4 $1 $18 {is the precise move to win. Be7 would kill now.} Kd5 65. Be7) 64... Kxb7 {[%emt 0:00:01]} 65. Bxf6 {[%emt 0:00:00]} (65. Kb5 $16 e4 66. fxe4 (66. Bxf6 exf3 67. Bd4 Bd8 $11)) 65... Kc6 $11 {[%emt 0:00:01]} 66. Bxe5 {[%emt 0:00:03] Weighted Error Value: White=0.49/Black=0.55} 1/2-1/2

[Event "ChessKid Cup Div-III 2023"]
[Site "Online"]
[Date "2023.05.22"]
[Round "51.2"]
[White "Narayanan, Srinath"]
[Black "Bachmann, Axel"]
[Result "0-1"]
[ECO "E16"]
[WhiteElo "2559"]
[BlackElo "2604"]
[Annotator "TA"]
[PlyCount "70"]
[EventDate "2023.05.21"]
[EventType "k.o."]
[EventCountry "NET"]
[SourceTitle "playchess.com"]
[Source "ChessBase"]
[SourceQuality "1"]
[TimeControl "900+3"]

{[%evp 15,70,0,5,0,0,-16,-44,-22,-28,-42,0,-6,-8,-20,0,-16,-6,-16,0,-43,0,-8,-27,-50,-46,-51,-67,-143,-21,-25,-20,-86,-87,-251,-256,-257,-263,-248,-232,-241,-248,-267,-149,-573,-492,-876,-858,-866,-839,-29978,-29979,-29988,-29989,-29989,-29990,-29990,-29991]} 1. d4 {[%emt 0:00:06]} Nf6 {[%emt 0:00:06]} 2. Nf3 {[%emt 0:00:01]} e6 {[%emt 0:00:02]} 3. c4 {[%emt 0:00:07]} Bb4+ {[%emt 0:00:04]} 4. Nbd2 {[%emt 0:00:02]} b6 {[%emt 0:00:24]} 5. g3 {[%emt 0:00:09]} Bb7 {[%emt 0:00:02]} 6. Bg2 {[%emt 0:00:01]} O-O {[%emt 0:00:08]} 7. O-O {[%emt 0:00:03]} d5 {[%emt 0:00:13]} 8. Qc2 {[%emt 0:00:58]} Nbd7 {[%emt 0:00:13]} 9. a3 {[%emt 0:00:27] E16: Queen's Indian: 4 g3 Bb7 5 Bg2 Bb4+.} Be7 {[%emt 0:00:46]} 10. b4 {[%emt 0:00:12]} c5 {[%emt 0:02:10]} 11. bxc5 {[%emt 0:00:05] Black is slightly better.} bxc5 {[%emt 0:00:00]} 12. Rb1 {[%emt 0:00:00]} Qc8 {[%emt 0:00:39]} 13. cxd5 {[%emt 0:00:18]} Bxd5 {[%emt 0:00:13]} 14. e4 {[%emt 0:02:36][%cal Be2e4,Be4e5][%mdl 32] [#]} Bb7 $146 {[%emt 0:00:03]} ({Predecessor:} 14... Bc6 15. e5 Nd5 16. Ne4 cxd4 17. Nxd4 Bb7 18. Qxc8 Bxc8 19. f4 Ba6 20. Rd1 Bc5 21. Nxc5 Nxc5 22. Bxd5 exd5 {1-0 Maly,A (2371)-Dai,G (1709) PNWCC Online blitz JP 14th 2020 (2)}) 15. d5 {[%emt 0:00:02]} exd5 {[%emt 0:00:09]} 16. e5 {[%emt 0:00:03]} Ne4 {[%emt 0:00:04]} 17. Re1 {[%emt 0:00:20][%cal Rd2e4]} Rb8 {[%emt 0:00:40]} 18. Nxe4 {[%emt 0:01:07]} dxe4 {[%emt 0:00:00]} 19. Ng5 {[%emt 0:00:01]} Bxg5 $1 {[%emt 0:00:12]} 20. Bxg5 {[%emt 0:00:01]} Nxe5 {[%emt 0:00:06]} 21. Bf4 {[%emt 0:00:18] [#]} ({White should try} 21. Bxe4 $15 Bxe4 22. Qxe4 Rxb1 23. Rxb1) 21... Nd3 {[%emt 0:00:20]} 22. Bxb8 $11 {[%emt 0:01:42] This pair of bishops is nice.} Nxe1 {[%emt 0:00:03][%cal Bd3e1,Be1f3,Bf3d2][%mdl 32]} 23. Qb2 {[%emt 0:00:11]} (23. Rxe1 $11 Qxb8 24. Qxc5) 23... Qxb8 $17 {[%emt 0:03:44]} 24. Bxe4 {[%emt 0:00:23] [#]} (24. Rxe1 $17 {keeps fighting.} Qc8 25. Bxe4 Bxe4 26. Rxe4) 24... Bxe4 $1 $19 {[%emt 0:00:13]} 25. Qxb8 {[%emt 0:00:42][%cal Ob1b2] aiming for Rb2!} Nf3+ {[%emt 0:00:02]} ({Don't do} 25... Bxb1 26. Qxb1 Nf3+ 27. Kg2 $18) 26. Kg2 {[%emt 0:00:01][%cal Ob1b2] Rb2! is the strong threat.} Nd2+ {[%emt 0:00:01][%mdl 64] Discovered Attack} 27. f3 {[%emt 0:00:00][%cal Of3e4]} Bxb1 {[%emt 0:00:01]} ({Not} 27... Nxb1 28. Qxa7 Ba8 29. Qa5 $15) 28. Qxa7 {[%emt 0:00:09]} c4 {[%emt 0:00:29]} (28... Re8 $19 29. Qxc5 Re2+ 30. Kh1 h6) 29. Qc7 $2 {[%emt 0:00:51][%mdl 8192] This costs White the game.} (29. Qa5 $17 {nothing else works.} Nb3 30. Qc7) 29... Bd3 {[%emt 0:00:03] And now ...Re8 would win.} 30. a4 {[%emt 0:00:02]} (30. Qd7 $142 h6 31. a4) 30... Re8 {[%emt 0:01:04]} 31. a5 {[%emt 0:00:02]} h5 {[%emt 0:00:02] ( -> ...Re2+)} 32. Qc6 {[%emt 0:01:08]} Re2+ {[%emt 0:00:12] Black mates.} 33. Kh3 {[%emt 0:00:09]} Nf1 {[%emt 0:00:37][%csl Gf1][%cal Re2h2]} 34. Kh4 {[%emt 0:00:13]} Rxh2+ {[%emt 0:00:04]} 35. Kg5 {[%emt 0:00:02]} f6+ {[%emt 0:00:01] Weighted Error Value: White=0.76/Black=0.18 (very precise)} 0-1

[Event "ChessKid Cup Div-III 2023"]
[Site "Online"]
[Date "2023.05.22"]
[Round "51.2"]
[White "Terry, Renato"]
[Black "Sasikiran, Krishnan"]
[Result "1-0"]
[ECO "A06"]
[WhiteElo "2520"]
[BlackElo "2604"]
[Annotator "TA"]
[PlyCount "57"]
[EventDate "2023.05.21"]
[EventType "k.o."]
[EventCountry "NET"]
[SourceTitle "playchess.com"]
[Source "ChessBase"]
[SourceQuality "1"]
[TimeControl "900+3"]

{[%evp 9,57,2,8,-11,-10,-2,16,8,1,0,0,-15,-14,-17,0,0,0,0,0,0,0,-13,0,-17,-26,-27,-15,-92,-92,-197,0,0,0,0,8,30,53,-52,-28,-36,107,5,12,5,86,88,258,262,242,256]} 1. Nf3 {[%emt 0:00:05]} d5 {[%emt 0:00:18]} 2. b3 {[%emt 0:00:06]} c5 {[%emt 0:00:10]} 3. e3 {[%emt 0:00:04]} a6 {[%emt 0:00:17]} 4. Bb2 {[%emt 0:00:08]} Nc6 {[%emt 0:00:02]} 5. d4 {[%emt 0:00:07]} Nf6 {[%emt 0:00:08]} 6. a3 {[%emt 0:00:25] A06: Réti Opening: 1 Nf3 d5.} cxd4 {[%emt 0:00:12]} 7. Nxd4 {[%emt 0:00:28]} Qc7 {[%emt 0:00:40] [#]} 8. c4 $146 {[%emt 0:00:19] The position is equal.} ({Predecessor:} 8. Nd2 e5 9. Nxc6 bxc6 10. c4 Bd6 11. Qc2 Bb7 12. c5 Be7 13. b4 O-O 14. Nb3 {1-0 Trussevich,S (2287)-Hirneise,T (2460) BL2-Sued 1819 2018 (8.5)}) 8... e5 {[%emt 0:00:13]} 9. Nxc6 {[%emt 0:00:49]} bxc6 {[%emt 0:00:02]} 10. cxd5 {[%emt 0:00:01]} cxd5 {[%emt 0:00:12]} 11. Nc3 {[%emt 0:00:01]} Be6 {[%emt 0:02:46]} 12. Be2 {[%emt 0:00:26]} Bd6 {[%emt 0:01:17]} 13. Rc1 {[%emt 0:00:26][%cal Oc3b5]} Qe7 {[%emt 0:00:56]} 14. b4 {[%emt 0:00:00]} O-O {[%emt 0:00:02]} 15. O-O {[%emt 0:00:02]} Rfd8 {[%emt 0:00:42][%cal Od5d4]} 16. Na4 {[%emt 0:01:09]} a5 {[%emt 0:00:33]} 17. Nc5 {[%emt 0:00:06]} Bf5 {[%emt 0:00:55]} 18. Na6 {[%emt 0:05:01] [#]} (18. Bd3 $11 Bxd3 19. Qxd3) 18... d4 $1 $17 {[%emt 0:02:41]} (18... axb4 $6 19. Nxb4 Qe8 20. Re1 $11) 19. exd4 {[%emt 0:00:58]} (19. b5 $17) 19... e4 $2 {[%emt 0:00:47]} ({Stronger than} 19... axb4 20. Nxb4 Bxb4 21. axb4 $11) ({Black should try} 19... exd4 $19 {Hoping for ...d3.} 20. Bxd4 Ne4) 20. b5 $11 {[%emt 0:01:35]} Nd5 {[%emt 0:00:42][%cal Of5h3] ...Bh3! is the strong threat.} 21. g3 {[%emt 0:00:42]} Qg5 {[%emt 0:00:39]} 22. Rc6 $36 {[%emt 0:00:16][%mdl 2048] White fights for an advantage.} Bh3 {[%emt 0:00:30]} 23. Bc1 {[%emt 0:00:16]} (23. Re1 $14) 23... e3 $1 $15 {[%emt 0:00:43]} 24. Re1 {[%emt 0:00:08] [#] Chess con chili.} Bxa3 {[%emt 0:00:19]} 25. Bf3 {[%emt 0:00:10]} ({White should play} 25. fxe3 $16 {aiming for e4.} Bxc1 26. Qxc1) 25... Bxc1 $11 {[%emt 0:00:13]} 26. Rxc1 {[%emt 0:00:27] With the idea Rc5.} exf2+ {[%emt 0:00:12]} (26... h5 $11 {keeps the balance.}) 27. Kxf2 $16 {[%emt 0:00:00]} Nf6 $2 {[%emt 0:00:08]} 28. Rc5 $18 {[%emt 0:00:53]} Qh6 {[%emt 0:00:05][%cal Oh3g4]} 29. Qc1 {[%emt 0:00:23] Weighted Error Value: White=0.25 (precise) /Black=0.33} 1-0

[Event "ChessKid Cup Div-III 2023"]
[Site "Online"]
[Date "2023.05.22"]
[Round "51.2"]
[White "Raja Harshit"]
[Black "Iniyan, P."]
[Result "1-0"]
[ECO "B95"]
[WhiteElo "2515"]
[BlackElo "2525"]
[Annotator "TA"]
[PlyCount "37"]
[EventDate "2023.05.21"]
[EventType "k.o."]
[EventCountry "NET"]
[SourceTitle "playchess.com"]
[Source "ChessBase"]
[SourceQuality "1"]
[TimeControl "900+3"]

{[%evp 12,37,31,-7,35,6,25,25,42,19,40,29,13,30,75,26,90,76,220,137,687,677,682,666,781,779,799,706]} 1. e4 {[%emt 0:00:04]} c5 {[%emt 0:00:27]} 2. Nf3 {[%emt 0:00:03]} d6 {[%emt 0:00:01]} 3. d4 {[%emt 0:00:01]} cxd4 {[%emt 0:00:00]} 4. Nxd4 {[%emt 0:00:01]} Nf6 {[%emt 0:00:00]} 5. Nc3 {[%emt 0:00:00]} a6 {[%emt 0:00:01]} 6. Bg5 {[%emt 0:00:07]} e6 {[%emt 0:00:01]} 7. Qe2 {[%emt 0:00:13]} Nbd7 {[%emt 0:00:04][%cal Bb8d7,Bd7e5,Be5c4][%mdl 32] B95: Sicilian Najdorf: 6 Bg5 e6, unusual White 7th moves.} 8. g3 {[%emt 0:00:04]} Qc7 {[%emt 0:00:10]} 9. Bg2 {[%emt 0:00:19]} h6 {[%emt 0:00:00] White has an edge.} 10. Bd2 {[%emt 0:00:37]} Ne5 {[%emt 0:00:07] [#]} 11. f4 $146 {[%emt 0:02:57]} ({Predecessor:} 11. O-O Be7 12. Nd1 Bd7 13. Ne3 b5 14. f4 Nc6 15. c3 O-O 16. Rac1 Rac8 17. Kh1 {1-0 Ottesen,S (2370)-Siigur,J (2409) W-ch42 sf05 email 2018}) 11... Nc4 {[%emt 0:00:03]} 12. O-O-O {[%emt 0:01:06][%cal Oe4e5]} Be7 {[%emt 0:00:20]} 13. Kb1 {[%emt 0:01:47]} (13. e5 $16 dxe5 14. fxe5) 13... Rb8 {[%emt 0:00:15] [#]} (13... O-O $11) 14. Bc1 $1 $16 {[%emt 0:00:54]} Nd7 {[%emt 0:01:40]} (14... Bd7 $16) 15. Nf5 {[%emt 0:00:32][%mdl 64] Deflection} Bf6 {[%emt 0:00:03][%mdl 8192] [#] This costs Black the game.} (15... exf5 $16 16. Nd5 {[%mdl 64] Deflection} Qd8) 16. Qxc4 $3 $18 {[%emt 0:00:03][%mdl 576] Remove Defender, Decoy. White is clearly winning.} Qxc4 {[%emt 0:00:32]} 17. Nxd6+ {[%emt 0:00:03][%cal Bf5d6,Bd6c4,Bc4d6][%mdl 32]} Ke7 {[%emt 0:00:01] aiming for ...Qc6.} 18. Nxc4 {[%emt 0:00:00] A dynamic duo of knights.} b5 {[%emt 0:00:03]} 19. Nd6 {[%emt 0:00:41] Weighted Error Value: White=0.24 (precise) /Black=0.86} 1-0